Cogmind - Beta 16.1 @@@ ROGUE MODE // 2026.02.14 @ 13:37:33 Player: Not_Jesus8 Result: Self-destructed Performance ------------- Evolutions (1) 500 Regions Visited (2) 400 Robots Destroyed (3) 15 Value Destroyed (30) 30 Prototype IDs (0) 0 Alien Tech Used (0) 0 Bonus (0) 0 TOTAL SCORE: 945 Bonus ------- None Cogmind --------- Core Integrity 358/400 Matter 292/300 Energy 100/100 System Corruption 0% Temperature Cool (9) Movement Core (100) Ox1 Location -9/Materials Parts ------- > --- POWER (1) -------- (None) > --- PROPULSION (3) --- (None) > --- UTILITY (3) ------ Small Storage Unit > --- WEAPON (2) ------- (None) > --- INVENTORY (8) ---- Grenade Launcher Mining Laser Peak State ------------ > --- POWER ------------ (None) > --- PROPULSION ------- Compact Wheel Compact Wheel > --- UTILITY ---------- Small Storage Unit > --- WEAPON ----------- Grenade Launcher > --- INVENTORY -------- (None) [Rating: 4] Favorites ----------- Power None Propulsion Compact Wheel Wheel Compact Wheel Utility Small Storage Unit Storage Small Storage Unit Weapon Grenade Launcher Launcher Grenade Launcher Build | -11 -10 -9 ------- Run | Yrd Mat Mat Slots Evolved 2 | . . 2 Power . | . . . Propulsion 1 | . . 1 Utility 1 | . . 1 Weapon . | . . . Parts Attached 4 | 3 1 . Power . | . . . Engine . | . . . Core . | . . . Reactor . | . . . Propulsion 2 | 2 . . Treads . | . . . Leg . | . . . Wheel 2 | 2 . . Hover . | . . . Flight . | . . . Utility 1 | 1 . . Device . | . . . Storage 1 | 1 . . Processor . | . . . Hackware . | . . . Protection . | . . . Artifact . | . . . Weapon 1 | . 1 . Energy Gun . | . . . Energy Cannon . | . . . Ballistic Gun . | . . . Ballistic Cannon . | . . . Launcher 1 | . 1 . Special Weapon . | . . . Impact Weapon . | . . . Slashing Weapon . | . . . Piercing Weapon . | . . . Special Melee Weapon . | . . . Unidentified Prototypes . | . . . Parts Lost 2 | . 1 1 Power . | . . . Propulsion 2 | . 1 1 Utility . | . . . Weapon . | . . . Highest Loss Streak 1 | . 1 1 To Critical Strikes . | . . . Average Backups 1 | . . 1 Power . | . . . Propulsion . | . . . Utility . | . . . Weapon 1 | . . 1 Tool/Special . | . . . Unused Backups 1 | . . 1 Power . | . . . Propulsion . | . . . Utility . | . . . Weapon 1 | . . 1 Tool/Special . | . . . Average Slot Usage (%) 31 | . 40 22 Wheel 18 | . 26 11 Storage 12 | . 14 11 Peak Build Rating 4 | 3 4 2 Average Rating 2 | 2 2 1 On Entrance 1 | . 3 2 Avg Prop Armor Cover (%) . | . . . Naked Turns . | . . . Heaviest Build 5 | 5 5 5 Greatest Support 32 | 32 32 16 Greatest Overweight (x) . | . . . Average Overweight (x) . | . . . Largest Inventory Capacity 8 | 8 8 8 Average Capacity 7 | 6 8 8 Most Carried 2 | . 1 2 Average Carried 1 | . . 1 Final Capacity 8 | 8 8 8 Final Carried 2 | . 1 2 Class Distribution -------------------- 100% | Mutant Dominant Class ---------------- Mutant | -10/Materials Mutant | -9/Materials Resources | -11 -10 -9 ----------- Run | Yrd Mat Mat Matter Collected 240 | 230 10 . Remotely . | . . . Salvage Created 20 | . 20 . Parts 6 | . 6 . Haulers Intercepted . | . . . Recyclers Shooed . | . . . Parts Field Recycled . | . . . Retrieved Matter . | . . . Parts Self-Destructed . | . . . Prevented . | . . . Parts Restored . | . . . Kills | -11 -10 -9 ------- Run | Yrd Mat Mat Combat Hostiles Destroyed 3 | . 3 . AOE 3 | . 3 . Classes Destroyed 1 | . 1 . Swarmer 3 | . 3 . Best Kill Streak 3 | . 3 . Combat Bots Only 3 | . 3 . Max Kills in Single Turn 3 | . 3 . Gunslinging . | . . . Exploded 3 | . 3 . Melee . | . . . Uniques/NPCs Destroyed . | . . . Combat | -11 -10 -9 -------- Run | Yrd Mat Mat Hostile Shots Fired 27 | . 18 9 Missed 7 | . 3 4 Hits 20 | . 15 5 Projectile 20 | . 15 5 Damage Taken 262 | . 189 73 Core 138 | . 96 42 Absorbed by Shields . | . . . Core Remaining (%) 80 | 100 61 . Volleys Fired 1 | . 1 . Largest 1 | . 1 . Hottest 30 | . 30 . Shots Fired 1 | . 1 . Gun . | . . . Cannon . | . . . Launcher 1 | . 1 . Special . | . . . Kinetic . | . . . Thermal . | . . . Explosive 1 | . 1 . Electromagnetic . | . . . Robot Hit Streak 1 | . 1 . Robot Miss Streak . | . . . Penetration Max . | . . . Secondary Targets . | . . . Shots Hit Robots 1 | . 1 . Core Hits 4 | . 4 . Critical Kills . | . . . Critical Parts Destroyed . | . . . Critical Strikes . | . . . Melee Attacks . | . . . Impact . | . . . Slashing . | . . . Piercing . | . . . Sneak Attacks . | . . . Combat Hostiles . | . . . Follow-up Attacks . | . . . Damage Inflicted 155 | . 155 . Guns . | . . . Cannons . | . . . Explosions 151 | . 151 . Melee . | . . . Ramming 4 | . 4 . Kinetic . | . . . Thermal . | . . . Explosive 151 | . 151 . Electromagnetic . | . . . Impact . | . . . Slashing . | . . . Piercing . | . . . Highest Corruption 1 | . 1 . Average Corruption 1 | . 1 . Corruption Purged . | . . . Corruption Blocked . | . . . Overload Shots . | . . . Overflow Damage . | . . . Projectiles . | . . . Explosions . | . . . Melee . | . . . Knockbacks . | . . . Impact . | . . . Kinetic . | . . . Secondary . | . . . Self-Inflicted Damage 29 | . 29 . Shots 1 | . 1 . Rammed 1 | . 1 . Targets Rammed 1 | . 1 . Kicked . | . . . Crushed . | . . . Highest Temperature . | . . . Average Temperature . | . . . Received Heat Transfer 114 | . 78 36 Siege Activations . | . . . Martial Activations . | . . . Shielding Activations . | . . . Robots Disrupted . | . . . Combat Hostiles . | . . . Robots Corrupted . | . . . Combat Hostiles . | . . . Parts Fried . | . . . Impact Corruptions . | . . . Robots Melted . | . . . Combat Hostiles . | . . . Parts Melted . | . . . Heat Transferred . | . . . Parts Sabotaged . | . . . Parts Stolen . | . . . Parts Stripped . | . . . Power Chain Reactions . | . . . Alert | -11 -10 -9 ------- Run | Yrd Mat Mat Maximum Alert Level . | . . . Low Security (%) 100 | 100 100 100 Level 1 . | . . . Level 2 . | . . . Level 3 . | . . . Level 4 . | . . . Level 5 . | . . . High Security . | . . . Max Security . | . . . Peak Influence 79 | . 79 30 Initial 20 | . . 20 Average 12 | . 20 9 Influence Increases 109 | . 84 25 Destroy 0b10 Robot/C 60 | . 60 . Destroy Leader 10 | . 10 . Successful Hack 15 | . 5 10 Destroy Structure 9 | . 9 . Lose Combat Pursuer 15 | . . 15 Influence Decreases 104 | . 35 69 Entered New Map 29 | . . 29 Time Decay 55 | . 25 30 Lost Part 20 | . 10 10 Squads Dispatched 4 | . 3 1 Investigation 2 | . 2 . Extermination . | . . . Reinforcement 2 | . 1 1 Assault . | . . . Garrison . | . . . Intercept . | . . . Searches Triggered . | . . . Construction Impeded . | . . . Haulers Reinforced . | . . . Active Scanning Responses . | . . . Cargo Convoy Interrupts . | . . . Stealth | -11 -10 -9 --------- Run | Yrd Mat Mat Distress Signals . | . . . Communications Jammed . | . . . Distress Signals . | . . . Times Spotted 15 | . 7 8 Peak Tracking Total 6 | . 5 6 Tactical Retreats 1 | . . 1 Traps | -11 -10 -9 ------- Run | Yrd Mat Mat Traps Triggered 2 | . 1 1 Indirectly . | . . . Trap Hack Attempts . | . . . Triggered . | . . . Disarmed . | . . . Reprogrammed . | . . . Reused . | . . . Traps Extracted . | . . . Installed . | . . . Triggered . | . . . Machines | -11 -10 -9 ---------- Run | Yrd Mat Mat Machines Disabled . | . . . Max in Single Turn . | . . . Machines Repaired . | . . . Machines Dismantled . | . . . Machines Sabotaged . | . . . Overloaded Fab Kills . | . . . Hacking | -11 -10 -9 --------- Run | Yrd Mat Mat Machines Accessed 4 | . 3 1 Terminals 4 | . 3 1 Fabricators . | . . . Repair Stations . | . . . Recycling Units . | . . . Scanalyzers . | . . . Garrison Access . | . . . Total Hacks 13 | . 8 5 Successful 7 | . 4 3 Failed 6 | . 4 2 Catastrophic 2 | . 2 . Database Lockouts . | . . . Manual 13 | . 8 5 Terminals 13 | . 8 5 Fabricators . | . . . Repair Stations . | . . . Recycling Units . | . . . Scanalyzers . | . . . Garrison Access . | . . . Terminal Hacks 1 | . 1 . Terminal Index 1 | . 1 . Fabricator Hacks . | . . . Repair Station Hacks . | . . . Recycling Unit Hacks . | . . . Scanalyzer . | . . . Garrison Access Hacks . | . . . Unauthorized Hacks 6 | . 3 3 Terminals 6 | . 3 3 Botnet 3 | . 2 1 Operators 1 | . . 1 Skim 2 | . 1 1 Fabricators . | . . . Repair Stations . | . . . Recycling Units . | . . . Scanalyzers . | . . . Garrison Access . | . . . Data Cores Recovered . | . . . Used . | . . . Hacking Detections 4 | . 3 1 Full Trace Events 1 | . 1 . Feedback Events . | . . . Feedback Blocked . | . . . Robot Schematics Acquired . | . . . Robots Built . | . . . Authchips . | . . . Time . | . . . Total Robot Build Rating . | . . . Part Schematics Acquired . | . . . Parts Built . | . . . Authchips . | . . . Time . | . . . Total Part Build Rating . | . . . Part Studies Acquired . | . . . Parts Repaired . | . . . Time . | . . . Parts Recycled . | . . . Recycled Matter . | . . . Retrieved Matter . | . . . Retrieved Components . | . . . Parts Scanalyzed . | . . . Part Schematics Acquired . | . . . Parts Damaged . | . . . Bothacking | -11 -10 -9 ------------ Run | Yrd Mat Mat Used RIF Installer . | . . . Robots Hacked . | . . . Non-combat . | . . . Combat . | . . . Robot Hacks Applied . | . . . Relay Couplers Released . | . . . Fabnet Peak Effective % . | . . . Robots Rewired . | . . . Allies Hacked . | . . . Hacks Repelled . | . . . Allies | -11 -10 -9 -------- Run | Yrd Mat Mat Total Allies . | . . . Largest Group . | . . . Highest-Rated Group . | . . . Highest-Rated Ally . | . . . Total Orders . | . . . Ally Attacks . | . . . Total Damage . | . . . Kills . | . . . Allies Corrupted . | . . . Allies Melted . | . . . Intel | -11 -10 -9 ------- Run | Yrd Mat Mat Active Infowar (turns) . | . . . Robot Analysis Total . | . . . Derelict Logs Recovered . | . . . Drone Launches . | . . . Drone Recoveries . | . . . Exploration | -11 -10 -9 ------------- Run | Yrd Mat Mat Turns Passed 277 | 38 112 127 Spaces Moved 271 | 40 107 124 Core 12 | 12 . . Treads . | . . . Legs . | . . . Wheels 259 | 28 107 124 Hover . | . . . Flight . | . . . Fastest Speed 50 | 50 100 100 Average Speed 97 | 85 100 100 Slowest Speed 100 | 100 100 100 Overloaded Moves . | . . . Propulsion Burnouts . | . . . Robots Hopped . | . . . Potential Cave-ins . | . . . Cave-ins Triggered . | . . . Exploration Rate (%) 18 | 3 31 20 Regions Visited 2 Branch Regions . Pre-discovered Areas . | . . . Known Exits Taken . | . . . Unknown Exits Taken 2 | 1 1 . Scrap Searched . | . . . Spaces Dug . | . . . Terrain Destroyed 9 | . 9 . Melee . | . . . Projectile . | . . . AOE 9 | . 9 . Terrain Rammed . | . . . Walls Destroyed . | . . . Machines Disabled . | . . . Actions | -11 -10 -9 --------- Run | Yrd Mat Mat Total 279 | 42 111 126 Wait . | . . . Move 269 | 39 106 124 Hop . | . . . Pick Up 2 | . 1 1 Fast Attach 4 | 3 . 1 Attach 1 | . 1 . Detach 1 | . 1 . Swap . | . . . Drop . | . . . Fire 1 | . 1 . Melee . | . . . Ram 1 | . 1 . Kick . | . . . Crush . | . . . Escape Stasis . | . . . Rewire . | . . . Trap . | . . . Miscellaneous . | . . . Route ------- -11/Scrapyard -10/Materials -9/Materials (discovered 1 exit: [*Min]) History --------- Turn | Location | Event 5 | -11/Scrapyard | Discovered new exit (range 16) 39 | -11/Scrapyard | Entered Materials 147 | -10/Materials | Discovered new exit (range 6) 151 | -10/Materials | Entered another Materials area 151 | -9/Materials | Evolved 2 slots: Propulsion x1, Utility x1 173 | -9/Materials | Discovered new exit (range 15) 278 | -9/Materials | Self-destructed Last Messages --------------- >>Trojan(Operators) Trojan loaded successfully. Testing... Operator tracking enabled and active. >>Trojan(Skim) Trojan loaded successfully. Testing... Terminal linked with 0 systems. Please expand to 4 more systems! 00173_ EXIT=FOUND 00192_ Acquired Mining Laser. 00245_ ALERT: Hostiles spotted, dispatching reinforcements to Terminal M008. 00262_ Triggered Blade Trap. 00262_ Massive razor-sharp blades shoot up from within the floor. 00262_ Com. Wheel severed. 00263_ K-01 Serf collects debris. 00263_ Acquired Com. Wheel. 00278_ Com. Wheel destroyed. Map ----- +----------------------------------------------------+ | ????????# ?? ?????????????????????????????????? | | ????????# ?? ?????????????????????????????????? | | ????????# ?? ???#####?????????????????????????? | | ????????# ###+### ??????????????????????????? | | ????????# ???????????????????????????? | | ????????# ???????????????????????????? | | ????????# ????????????????????????????? | | ????????# ?????????????????????????????? | | ????????# ###############+##????????????? | | ????????# ???????????? | | ????????# ???????????? | | ????????# #??????????? | | ?? ?????# #??????????? | | ?? ?????# ^ #??????????? | | ?? ?########## """ """ """ " "?????????????? | | ?? #? # """ """ """ "???????????????? | | ## ## """ # """ """ """ """?????????????? | | ! # """ + ???????????? | | # """ # ???????????? | | ? """ # #####g############??????????????? | | ? """ ?# #] #?????????????????????? | | # #?? ?# # #?????????????????????? | | # #?? ??# # #?????????????????????? | | # #?######??# # #?????????????????????? | | # #??????#??# Y #?????????????????????? | | # #???? #??# # @ #?????????????????????? | | #?? ]! #??# # | #?????????????????????? | | # ]! #??# # #?????????????????????? | | # + ]! #??# ###########?????????????????????? | | # # #??# ########????????????????????????? | | # #?? #?# +o?????????????????????? | | ############## ########????????????????????????? | | / #???????????????????????????????? | | ###############+##???????????????????????????????? | | #???????????? ???????????????????????????????? | | #?????????? ?????????????????????????????? | | ????????? ???????????????????????????? | | ????????# """"" #??????????????????????????? | | ????????# """"""""" #??????????????????????????? | | ????????# """ """ #??????????????????????????? | | ????????###############??????????????????????????? | | | | | | | | | | | | | | | | | | | +----------------------------------------------------+ Best States ------------- Heat Dissipation 28 Energy Generation 5 Energy Capacity 100 Matter Stores 300 Matter Capacity 300 Sight Range 16 Terrain Scan Density 10 Evasion (%) 40 Item Schematics ----------------- None Robot Schematics ------------------ None Fabricated ------------ Nothing Repaired ---------- Nothing Studied --------- None Alien Tech Used ----------------- None Achievements -------------- None Challenges ------------ None Game ------ Seed UtilityActuatorAutominer Manual? 0 Play Time 00:03:30 Cumulative 38.9 hours Start 2026.02.14 @ 13:35:00 End 2026.02.14 @ 13:37:33 Sessions 1 Manual Loads 0 Difficulty Rogue Special Mode None Game No. 89 Rogue 89 Adventurer 0 Explorer 0 Win Type - Total 2 Types 2/0/0/0/0/0/0/0/0/0 Lore% 40 Gallery% 31 Achievement% 31 Wizard Run 0 Options --------- Layout 1 ASCII 0 Keyboard 1 Movement Arrows Keybinds 0 Fullscreen 1 Font 16/SmallcapsGlow Map View 50x54 Zoom Use 11% Tactical HUD 1 Map Filters NONE Filters NONE Steam 1 RUN: a569865c-49dd-4339-be73-a6ca68e70349